bitfinex/quotes_ETHUSD_20251008
["timestamp","ask_amount","ask_price","bid_price","bid_amount"]
[1759936873132,0.1112,4451.8,4451.2,2.24655968]
[1759936873330,0.1112,4451.8,4451.2,2.56]
[1759936873534,0.1112,4451.8,4451.0,0.112]
[1759936873535,0.1112,4451.8,4451.0,2.35867293]
[1759936873757,0.1112,4451.8,4451.0,0.112]
[1759936874257,0.1112,4451.8,4451.1,2.56]
[1759936874622,0.23573819,4451.7,4451.1,2.56]
[1759936874857,0.1112,4451.8,4451.1,2.56]
[1759936875058,0.1112,4451.8,4451.0,0.112]
[1759936875222,2.24639306,4451.6,4450.5,2.24691266]
[1759936875426,0.112,4451.4,4450.7,0.112]
[1759936875623,0.112,4451.4,4450.9,2.24672128]
[1759936875961,0.112,4451.8,4451.2,2.24657978]
[1759936876139,0.112,4451.8,4451.0,2.672]
[1759936876540,0.112,4451.8,4451.2,2.24655984]
[1759936877068,0.112,4451.8,4451.0,2.672]
[1759936877554,0.3478175,4451.8,4451.3,2.24651781]
[1759936877756,0.112,4451.8,4451.0,2.672]
[1759936877956,0.002,4451.4,4451.1,2.24663566]
[1759936878156,0.002,4451.4,4451.3,2.24653472]
[1759936878358,0.002,4451.4,4451.0,0.112]
[1759936878566,0.002,4451.4,4451.2,0.4626]
[1759936878873,0.002,4451.4,4451.3,2.35853472]
[1759936879385,0.002,4451.4,4451.3,2.82113472]
[1759936879556,0.002,4451.4,4451.3,2.84360006]
[1759936879756,0.002,4451.4,4451.3,3.60862363]
[1759936881757,0.002,4451.4,4451.3,3.58615829]
[1759936882283,0.002,4451.4,4451.3,6.14715829]
[1759936882588,0.002,4451.4,4451.3,8.06715829]
[1759936882775,0.002,4451.4,4451.3,5.50615829]
[1759936882976,0.002,4451.4,4451.3,8.06615829]
[1759936883291,0.002,4451.4,4451.3,5.50615829]
[1759936883993,0.002,4451.4,4451.3,7.30113472]
[1759936884761,0.002,4451.4,4451.3,4.62913472]
[1759936885561,0.002,4451.4,4451.3,7.19013472]
[1759936886185,0.002,4451.4,4451.3,7.18913472]
[1759936886694,0.002,4451.4,4451.3,4.62913472]
[1759936887106,0.002,4451.4,4451.3,2.70913472]
[1759936887497,0.002,4451.4,4451.3,5.26913472]
[1759936888025,0.002,4451.4,4450.1,0.4675]
[1759936888301,0.002,4451.4,4451.1,2.2465915]
[1759936888505,0.002,4451.4,4451.2,2.561]
[1759936888873,0.002,4451.4,4451.0,2.24667355]
[1759936889077,0.002,4451.4,4451.2,2.24657873]
[1759936889299,0.002,4451.4,4451.3,2.561]
[1759936889499,0.002,4451.4,4451.1,2.24662534]
[1759936889780,0.002,4451.4,4451.3,4.80753472]
[1759936890113,0.002,4451.4,4450.9,4.80772107]
[1759936890280,0.002,4451.4,4450.9,2.561]
[1759936890480,0.31262532,4451.4,4450.9,2.561]
[1759936890680,0.31262532,4451.4,4450.9,4.80772869]
[1759936891088,0.31262532,4451.4,4451.0,2.24668613]
[1759936891390,0.002,4451.4,4451.1,2.24660233]
[1759936891711,0.002,4451.4,4451.3,2.24653472]
[1759936892403,0.002,4451.4,4450.6,0.4675]
[1759936892736,0.002,4451.4,4451.3,2.24653472]
[1759936893026,0.002,4451.4,4451.3,4.80753472]
[1759936893182,0.002,4451.4,4451.3,5.27503472]
[1759936893587,0.002,4451.4,4451.3,6.0271988]
[1759936895045,0.002,4451.4,4451.3,4.91953472]
[1759936895246,0.002,4451.4,4451.3,2.35853472]
[1759936895450,0.002,4451.4,4451.3,2.24753472]
[1759936895657,0.002,4451.4,4451.3,4.83000006]
[1759936895943,0.002,4451.4,4451.3,2.24753472]
[1759936896144,0.0012,4451.4,4451.3,4.83000006]
[1759936896446,0.0012,4451.4,4451.3,4.80753472]
[1759936897020,0.0012,4451.4,4451.3,2.24753472]
[1759936897216,0.0012,4451.4,4451.3,4.80753472]
[1759936898639,0.0012,4451.4,4451.3,2.24753472]
[1759936898836,0.0012,4451.4,4451.3,4.83000006]
[1759936899048,0.0012,4451.4,4451.3,2.71503472]
[1759936899347,0.0012,4451.4,4451.3,2.561]
[1759936899553,0.0012,4451.4,4451.3,2.56]
[1759936899749,0.0012,4451.4,4451.3,4.80653472]
[1759936900123,0.0012,4451.4,4451.3,2.24753472]
[1759936900746,0.0012,4451.4,4451.3,4.80653472]
[1759936902661,0.0012,4451.4,4451.3,2.24753472]
[1759936902856,0.0012,4451.4,4451.3,4.80653472]
[1759936903249,0.0012,4451.4,4451.3,5.98125021]
[1759936903446,1e-08,4451.9,4451.4,2.24648425]
[1759936903761,1e-08,4451.9,4451.8,2.2462824]
[1759936903958,1e-08,4451.9,4451.8,4.82774522]
[1759936904124,0.01,4452.9,4452.2,2.24608058]
[1759936904322,0.01,4452.9,4452.2,5.25430375]
[1759936904530,0.01,4452.9,4452.2,5.72370375]
[1759936904863,0.01,4453.9,4452.3,1.92]
[1759936905076,0.01,4453.9,4453.8,2.24527369]
[1759936905240,1e-08,4453.9,4453.8,4.82672642]
[1759936905586,1e-08,4453.9,4453.8,5.38567369]
[1759936905861,1e-08,4453.9,4453.8,2.71467369]
[1759936906168,1e-08,4453.9,4452.9,0.4694]
[1759936906461,0.112,4453.8,4453.4,2.24546973]
[1759936906635,0.112,4453.8,4453.5,2.559]
[1759936907455,0.112,4453.8,4453.7,2.24532411]
[1759936907672,1e-08,4453.9,4453.8,2.24527369]
[1759936907828,1e-08,4453.9,4453.8,2.559]
[1759936908029,1e-08,4453.9,4453.8,4.82672642]
[1759936908230,1e-08,4453.9,4453.8,5.27367369]
[1759936908426,1e-08,4453.9,4453.8,5.38567369]
[1759936909263,1e-08,4453.9,4453.8,0.112]
[1759936909469,1e-08,4453.9,4453.8,4.91527369]
[1759936909875,1e-08,4453.9,4453.8,5.38467369]
[1759936910045,1e-08,4453.9,4453.8,6.14767824]
[1759936910739,1e-08,4453.9,4453.8,3.58967824]
[1759936910945,1e-08,4453.9,4453.8,5.38367369]
[1759936911671,1e-08,4453.9,4453.8,2.82667369]
[1759936911845,1e-08,4453.9,4453.8,5.38467369]
[1759936912471,1e-08,4453.9,4453.8,2.82667369]
[1759936912678,1e-08,4453.9,4453.8,5.38467369]
[1759936912969,1e-08,4453.9,4453.8,4.91527369]
[1759936913681,1e-08,4453.9,4453.8,2.35727369]
[1759936913974,1e-08,4453.9,4453.8,4.91427369]
[1759936914962,0.00200001,4453.9,4453.8,4.91427369]
[1759936915777,0.00200001,4453.9,4452.5,0.433]
[1759936915979,0.45700001,4453.9,4453.4,0.112]
[1759936916177,0.45700001,4453.9,4453.5,4.80237937]
[1759936916377,0.45700001,4453.9,4453.5,2.557]
[1759936916548,0.00200001,4453.9,4453.5,2.557]
[1759936916749,0.00200001,4453.9,4453.6,2.24537388]
[1759936917299,0.00200001,4453.9,4453.4,0.112]
[1759936917591,0.112,4453.6,4452.9,0.112]
[1759936917801,0.112,4453.6,4453.0,2.557]
[1759936918586,0.112,4453.6,4453.2,2.24557315]
[1759936918786,0.112,4453.6,4453.3,2.558]
[1759936919293,0.1112,4453.6,4453.3,2.558]
[1759936919498,0.1112,4453.6,4453.4,2.557]
[1759936919666,0.1112,4453.6,4453.5,2.24542494]
[1759936920058,0.00200001,4453.9,4453.5,0.02245424]
[1759936920266,0.00200001,4453.9,4453.6,0.545]
[1759936920614,0.00200001,4453.9,4453.8,2.24527369]
[1759936920793,0.00200001,4453.9,4453.8,2.35727369]
[1759936920984,0.00200001,4453.9,4453.8,2.79027369]
[1759936923230,0.00200001,4453.9,4453.2,0.433]
[1759936923379,0.00200001,4453.9,4453.6,2.24533644]
[1759936923591,0.00200001,4453.9,4453.5,0.112]
[1759936923886,0.00200001,4453.9,4453.6,2.556]
[1759936924392,0.00200001,4453.9,4453.6,2.24537452]
[1759936924596,0.00200001,4453.9,4453.7,2.556]
[1759936924977,0.00200001,4453.9,4453.7,4.80132278]
[1759936925177,0.00200001,4453.9,4453.8,2.24527369]
[1759936925578,0.00200001,4453.9,4453.8,4.80127369]
[1759936925801,0.00200001,4453.9,4453.8,2.556]
[1759936926180,0.00200001,4453.9,4453.8,4.80127369]
[1759936926506,0.00200001,4453.9,4453.8,2.556]
[1759936926808,2.24535378,4453.7,4452.9,0.112]
[1759936927103,0.112,4453.5,4453.0,2.383]
[1759936927674,0.112,4453.5,4453.0,4.62867606]
[1759936927874,0.112,4453.5,4453.0,2.24567606]
[1759936928079,0.112,4453.5,4453.1,2.556]
[1759936928273,0.112,4453.5,4453.1,2.24561857]
[1759936928496,0.455,4453.4,4452.2,0.45505473]
[1759936928671,0.455,4453.4,4452.8,2.24576805]
[1759936928672,0.112,4453.3,4452.8,2.24576805]
[1759936928871,0.455,4453.4,4452.9,2.555]
[1759936929112,0.455,4453.3,4452.9,2.555]
[1759936929273,0.00200001,4453.9,4452.9,2.555]
[1759936929473,0.00200001,4453.9,4453.2,2.24553841]
[1759936929678,2.24549749,4453.4,4452.1,0.21]
[1759936929888,0.22454975,4453.3,4452.2,2.179]
[1759936930083,0.6336,4453.4,4452.6,2.24585444]
[1759936930307,0.6336,4453.4,4451.9,0.433]
[1759936930476,2.24566515,4453.1,4452.3,2.24602619]
[1759936930679,1.92,4453.2,4452.4,2.558]
[1759936930680,0.6336,4453.2,4452.4,2.558]
[1759936930980,0.6336,4453.2,4452.7,2.24579019]
[1759936931172,0.6336,4453.3,4452.7,2.24579019]
[1759936931376,2.2455962,4453.2,4452.6,2.558]
[1759936931575,0.92150915,4453.3,4452.6,2.558]
[1759936931576,0.28790915,4453.3,4452.7,2.24582837]
[1759936931779,0.6336,4453.5,4453.0,2.24566956]
[1759936931995,0.63560001,4453.9,4453.1,0.02245626]
[1759936932214,2.55560001,4453.9,4453.2,2.24557621]
[1759936932401,2.88082465,4453.9,4453.2,2.24557621]
[1759936932623,0.63560001,4453.9,4453.3,0.02245525]
[1759936932804,0.00200001,4453.9,4453.2,2.24557621]
[1759936933004,0.00200001,4453.9,4453.1,0.001]
[1759936933224,0.00200001,4453.9,4453.2,2.24556176]
[1759936933535,0.00200001,4453.9,4453.1,0.001]
[1759936933738,0.00200001,4453.9,4453.5,2.24541773]
[1759936933893,0.00200001,4453.9,4453.6,0.02245374]
[1759936934095,0.455,4453.8,4453.1,0.001]
[1759936934295,2.24552981,4453.3,4453.1,0.001]
[1759936934609,0.22455298,4453.2,4453.1,0.001]
[1759936935195,0.002,4454.1,4453.2,2.24554094]
[1759936935394,0.6356,4454.1,4453.4,2.24547536]
[1759936935596,0.6356,4454.1,4453.3,0.02245525]
[1759936935797,0.6356,4454.1,4453.3,2.26796962]
[1759936936014,0.6336,4454.0,4453.3,2.26796962]
[1759936936202,2.87878491,4454.0,4453.3,2.26796962]
[1759936936421,0.6356,4454.1,4453.3,0.02245525]
[1759936936607,0.63560001,4453.9,4453.3,2.26797481]
[1759936936809,2.5536,4453.6,4453.1,0.001]
[1759936937012,2.87917621,4453.2,4453.1,0.001]
[1759936937213,4.79917621,4453.2,4453.1,0.001]
[1759936937497,5.25417621,4453.2,4453.1,0.001]
[1759936940918,7.81217621,4453.2,4453.1,0.001]
[1759936941114,8.81794452,4453.2,4453.1,0.001]
[1759936942226,8.81714452,4453.2,4453.1,0.001]
[1759936942425,4.79942837,4452.7,4452.6,0.001]
[1759936942642,21.50711234,4452.7,4452.6,0.001]
[1759936943038,21.96211234,4452.7,4452.6,0.001]
[1759936943239,24.21388279,4452.7,4452.6,0.001]
[1759936943429,9.60919882,4452.7,4452.6,0.001]
[1759936943632,7.82762837,4452.7,4452.6,0.001]
[1759936946256,7.19402837,4452.7,4452.6,0.001]
[1759936947060,7.82762837,4452.7,4452.6,0.001]
[1759936949459,7.82762837,4452.7,4451.3,0.001]
[1759936949460,1.92,4452.4,4451.3,0.001]
[1759936949630,5.02548425,4451.4,4451.3,0.001]
[1759936949830,8.3096741,4451.4,4451.3,0.001]
[1759936950031,8.7798741,4451.4,4451.3,0.001]
[1759936950428,5.83778985,4451.4,4451.3,0.001]
[1759936950630,5.1106,4451.4,4451.3,0.001]
[1759936951174,7.82728425,4451.4,4451.3,0.001]
[1759936951330,5.5808,4451.4,4451.3,0.001]
[1759936951535,3.1906,4451.4,4451.3,0.001]
[1759936952076,0.6336,4451.9,4451.3,0.001]
[1759936952232,3.0262,4452.4,4451.7,0.001]
[1759936952430,2.44721242,4452.3,4451.7,0.001]
[1759936952644,0.52721242,4452.3,4451.7,0.001]
[1759936952855,0.6336,4452.2,4451.8,2.24626902]
[1759936953058,0.6336,4452.2,4451.7,2.24732624]
[1759936953255,0.6336,4452.2,4451.7,2.24732035]
[1759936953461,0.6336,4452.2,4451.7,0.001]
[1759936954461,1.92,4452.3,4451.7,0.001]
[1759936955543,0.6336,4452.2,4451.7,0.001]
[1759936956272,0.6336,4452.2,4451.7,2.24728497]
[1759936956467,0.6336,4452.2,4451.7,0.001]
[1759936956763,0.6336,4452.2,4451.7,2.24733164]
[1759936956946,0.112,4451.9,4451.7,0.001]
[1759936957337,0.112,4451.9,4451.8,2.2462824]
[1759936957538,2.032,4452.3,4452.0,2.24613136]
[1759936957738,2.032,4452.3,4451.7,0.001]
[1759936958680,2.032,4452.3,4451.8,2.24626806]
[1759936958868,2.5022,4452.3,4451.7,0.001]
[1759936959036,2.032,4452.3,4451.8,2.24626867]
[1759936959236,2.032,4452.3,4451.7,2.24733049]
[1759936959447,2.032,4452.3,4451.7,2.24728728]
[1759936959676,2.032,4452.3,4451.8,2.24626536]
[1759936959974,2.032,4452.3,4451.9,2.24620883]
[1759936960162,2.032,4452.3,4451.7,0.001]
[1759936960363,2.032,4452.3,4451.8,2.24626132]
[1759936960765,2.032,4452.3,4451.9,2.246231]
[1759936960966,2.032,4452.3,4451.8,2.24626743]
[1759936961673,2.032,4452.3,4451.7,0.001]
[1759936961847,2.5022,4452.3,4451.7,0.001]
[1759936962049,2.5022,4452.3,4451.8,2.24626979]
[1759936962247,2.5022,4452.3,4451.7,0.001]
[1759936963181,2.5022,4452.3,4451.7,2.24731346]
[1759936963744,2.5022,4452.3,4451.8,2.24627668]
[1759936964282,0.6336,4452.1,4451.7,0.001]
[1759936964575,2.555,4452.0,4451.7,0.001]
[1759936965345,3.0244,4452.0,4451.7,0.001]
[1759936966166,5.27059284,4452.0,4451.7,0.001]
[1759936966368,3.0244,4452.0,4451.7,0.001]
[1759936967154,3.3500464,4451.9,4451.7,0.001]
[1759936967354,2.4778824,4451.8,4451.7,0.001]
[1759936967545,0.7018,4451.8,4451.7,0.001]
[1759936968357,3.5816824,4451.8,4451.7,0.001]
[1759936968683,0.002,4453.2,4451.7,0.001]
[1759936968996,0.002,4453.2,4451.8,2.554]
[1759936969149,0.002,4453.2,4451.9,2.22066633]
[1759936969348,0.002,4453.2,4453.1,2.24562664]
[1759936969980,0.002,4453.2,4453.1,2.67482664]
[1759936971774,0.002,4453.2,4453.1,3.1438936]
[1759936971968,0.002,4453.2,4453.1,5.6968936]
[1759936972168,0.00200001,4453.9,4453.1,4.22307004]
[1759936972369,0.002,4454.4,4453.1,4.22307004]
[1759936972370,1e-08,4454.1,4454.0,2.24517287]
[1759936972611,0.002,4454.4,4454.1,2.24509844]
[1759936972770,0.002,4454.4,4454.3,2.43422166]
[1759936973101,1e-08,4454.6,4454.5,2.24492086]
[1759936973304,0.01,4455.9,4454.5,2.24492086]
[1759936973305,0.01,4455.9,4454.5,0.0224492]
[1759936973510,0.01,4455.9,4455.8,2.2442659]
[1759936973677,0.01,4455.9,4455.8,2.7033659]
[1759936973881,0.01,4455.9,4455.8,2.72580855]
[1759936974083,0.01,4455.9,4455.8,2.7033659]
[1759936974270,0.01,4455.9,4455.8,3.45353691]
[1759936974472,0.01,4455.9,4455.8,2.99443691]
[1759936974712,0.01,4455.9,4455.8,6.00753691]
[1759936975283,0.01,4455.9,4455.8,3.45353691]
[1759936975514,0.01,4455.9,4455.2,0.4591]
[1759936975687,0.01,4455.9,4455.3,4.79851422]
[1759936975879,0.01,4455.9,4455.3,2.554]
[1759936976385,0.01,4455.9,4455.8,2.2442659]
[1759936977873,0.01,4455.9,4454.1,1.92]
[1759936978075,0.6336,4455.7,4454.4,0.21092]
[1759936978282,0.6336,4455.7,4454.7,2.24481087]
[1759936978581,0.112,4455.3,4454.7,2.24481087]
[1759936979012,0.112,4455.3,4454.6,0.112]
[1759936979013,0.112,4455.3,4454.8,2.24476851]
[1759936979208,0.112,4455.3,4454.6,0.112]
[1759936979578,2.24450961,4455.4,4454.6,2.2448601]
[1759936979909,0.664,4455.8,4454.8,2.24472348]
[1759936979910,0.112,4455.1,4454.8,2.24472348]
[1759936980205,0.112,4455.1,4454.5,2.24492086]
[1759936980374,0.112,4455.1,4454.3,2.35698173]
[1759936980574,0.112,4455.1,4454.5,2.24487685]
[1759936980779,0.112,4455.1,4454.7,2.24481564]
[1759936980984,0.112,4455.1,4454.7,2.24477703]
[1759936981195,0.112,4455.1,4454.3,2.79713322]
[1759936981392,2.24471929,4454.9,4454.0,2.24516404]
[1759936981697,0.112,4454.7,4454.2,2.24506842]
[1759936981896,0.112,4454.7,4454.2,2.24502746]
[1759936982100,0.112,4454.7,4454.0,0.57028281]
[1759936982326,0.112,4454.7,4454.1,2.24508256]
[1759936982490,0.112,4454.7,4454.0,0.57028281]
[1759936982830,0.112,4455.1,4454.4,2.24497126]
[1759936983133,0.6336,4455.8,4454.4,2.24497126]
[1759936983134,0.112,4455.3,4455.2,2.24456814]
[1759936983340,0.112,4455.8,4455.2,0.48154568]
[1759936983636,0.01,4455.9,4455.8,2.2442659]
[1759936983784,0.002,4456.8,4455.8,0.02244265]
[1759936983983,0.002,4456.8,4456.3,2.24401409]
[1759936984424,0.002,4456.8,4456.3,2.72555423]
[1759936984719,0.002,4456.8,4456.3,2.70311409]
[1759936984905,0.002,4456.8,4455.6,0.4591]
[1759936985107,0.45,4456.3,4454.4,1.92]
[1759936985416,0.45,4456.3,4454.3,0.4591]
[1759936985417,2.24434981,4455.7,4454.3,0.4591]
[1759936985593,0.6336,4455.5,4454.2,2.554]
[1759936985797,0.6336,4455.5,4454.7,2.24477315]
[1759936986013,0.6336,4455.5,4454.2,2.554]
[1759936986189,0.6336,4455.9,4455.0,2.2446327]
[1759936986390,0.6336,4456.1,4454.5,0.44961712]
[1759936986704,0.6336,4455.8,4454.7,2.24480266]
[1759936986921,0.6336,4455.8,4454.9,2.24467456]
[1759936986922,5.08569298,4455.8,4454.9,2.24467456]
[1759936987100,5.08569298,4455.8,4455.0,2.24464406]
[1759936987295,2.84138217,4455.8,4455.1,2.24460512]
[1759936987503,2.84138217,4455.8,4455.2,2.24455291]
[1759936987796,0.002,4456.4,4454.4,0.4591]
[1759936987797,0.002,4456.4,4455.3,0.02244517]
[1759936988007,0.002,4456.4,4455.0,0.4591]
[1759936988428,0.0012,4456.4,4455.7,2.24428104]
[1759936988738,0.0012,4456.4,4455.9,2.24419323]
[1759936988923,0.0012,4456.4,4456.3,2.24401409]
[1759936989237,0.0012,4456.4,4456.2,2.24402303]
[1759936989587,0.0012,4456.4,4456.3,0.02244014]
[1759936989708,0.0012,4456.4,4455.6,0.4591]
[1759936989910,0.0012,4456.4,4455.7,2.554]
[1759936990127,0.0012,4456.4,4454.1,2.44429408]
[1759936990337,0.0012,4456.4,4454.9,2.24467779]
[1759936990641,0.6336,4456.3,4455.0,2.50546778]
[1759936991218,0.6336,4456.3,4455.4,2.24446471]
[1759936991419,0.6336,4456.3,4455.0,2.50546778]
[1759936991618,0.6336,4456.3,4455.7,2.24427]
[1759936991818,2.87762912,4456.3,4455.5,2.24440395]
[1759936992048,2.24438638,4455.6,4455.0,0.22446778]
[1759936992233,0.6336,4456.1,4454.7,2.554]
[1759936992742,2.24425524,4455.9,4455.1,2.24460082]
[1759936992945,0.6336,4456.1,4455.1,2.2445773]
[1759936993144,0.6336,4455.9,4454.7,2.554]
[1759936993307,0.6336,4455.9,4454.1,0.64907744]
[1759936993308,0.6336,4455.7,4454.1,0.64907744]
[1759936993505,0.6336,4455.5,4454.2,0.623]
[1759936993709,0.112,4455.2,4454.9,2.24467625]
[1759936993903,0.112,4455.2,4454.4,0.112]
[1759936994335,0.112,4455.2,4455.0,2.24463494]
[1759936994512,0.112,4455.2,4454.4,0.112]
[1759936994717,0.112,4455.2,4454.5,0.0224492]
[1759936994917,0.112,4455.2,4455.1,2.24461852]
[1759936995138,1.92,4456.5,4455.8,2.24426096]
[1759936995343,0.112,4455.9,4455.6,2.24436046]
[1759936996839,0.112,4455.9,4455.2,0.112]
[1759936997011,0.112,4455.9,4455.2,2.35654126]
[1759936997447,0.112,4455.9,4455.2,0.112]
[1759936997612,0.112,4455.9,4455.4,2.24446738]
[1759936997939,0.45,4455.8,4455.2,0.112]
[1759936998134,2.37,4455.8,4455.2,2.35652389]
[1759936998436,2.57022181,4455.9,4455.2,2.35652389]
[1759936998437,0.326,4455.9,4455.2,0.112]
[1759936998641,2.35621701,4455.9,4455.2,0.112]
[1759936998830,2.24440434,4455.6,4455.2,0.112]
[1759936999033,0.112,4455.3,4455.0,2.24466796]
[1759936999232,0.112,4455.3,4454.7,2.24482007]
[1759936999416,0.112,4455.3,4454.6,0.112]
[1759936999619,0.112,4455.3,4455.2,2.24456814]
[1759937000448,0.0012,4456.4,4455.2,0.90802065]
[1759937000653,0.0012,4456.4,4456.3,2.24401409]
[1759937001954,0.0012,4456.4,4455.2,2.69344724]
[1759937002163,0.45,4456.3,4455.2,0.44892065]
[1759937002322,2.69405739,4456.3,4455.3,2.553]
[1759937002522,0.0012,4456.4,4455.3,2.553]
[1759937002949,0.0012,4456.4,4455.4,0.48154467]
[1759937003155,0.0012,4456.4,4456.1,2.24409933]
[1759937003560,0.0012,4456.4,4455.9,2.24421406]
[1759937003729,0.0012,4456.4,4456.3,2.24401409]
[1759937004256,0.0012,4456.4,4456.3,2.70001409]
[1759937005058,0.0012,4456.4,4456.3,5.25201409]
[1759937005866,0.0012,4456.4,4456.3,2.70001409]
[1759937006031,0.0012,4456.4,4456.3,4.79601409]
[1759937007355,0.0012,4456.4,4456.3,2.24401409]
[1759937007559,0.0012,4456.4,4456.3,2.552]
[1759937007754,0.0012,4456.4,4456.2,2.24405309]
[1759937007977,0.0012,4456.4,4456.0,0.22442141]
[1759937008185,0.0012,4456.4,4456.3,2.24401409]
[1759937009186,0.0012,4456.4,4455.8,0.001]
[1759937009481,0.0012,4456.4,4455.9,2.551]
[1759937009680,0.0012,4456.4,4456.3,2.24401409]
[1759937009879,0.0012,4456.4,4456.3,4.79501409]
[1759937010080,0.0012,4456.4,4456.3,2.24401409]
[1759937010262,0.0012,4456.4,4456.3,4.79501409]
[1759937010925,0.0012,4456.4,4456.3,6.00052698]
[1759937011053,0.012,4456.9,4456.8,2.24376234]
[1759937011250,1e-08,4456.9,4456.8,4.79476234]
[1759937011463,0.00120001,4457.3,4457.2,2.24356097]
[1759937011662,0.00120001,4457.3,4457.2,4.79456097]
[1759937011866,0.00120001,4457.3,4457.2,5.25056097]
[1759937012064,0.00120001,4457.3,4457.2,5.99998026]
[1759937012783,0.00120001,4457.3,4457.2,5.9936794]
[1759937012985,0.00120001,4457.3,4457.2,5.24426011]
[1759937013660,0.00120001,4457.3,4457.2,5.24326011]
[1759937014282,0.00120001,4457.3,4457.2,2.69326011]
[1759937014482,0.00120001,4457.3,4457.2,5.24326011]
[1759937015381,0.00120001,4457.3,4456.2,1.92]
[1759937015546,0.00120001,4457.3,4456.3,3.01201148]
[1759937015751,0.00120001,4457.3,4456.4,3.006]
[1759937015986,0.00120001,4457.3,4457.0,2.24363938]
[1759937016179,0.00120001,4457.3,4457.0,2.24362415]
[1759937016385,0.00120001,4457.3,4457.0,4.79362415]
[1759937016582,0.00120001,4457.3,4456.4,0.456]
[1759937016781,0.00120001,4457.3,4457.2,2.24356097]
[1759937016982,0.00120001,4457.3,4457.0,2.55]
[1759937017180,0.00120001,4457.3,4456.3,0.46201148]
[1759937017356,0.00120001,4457.3,4456.4,2.55]
[1759937017554,0.00120001,4457.3,4456.4,4.79395639]
[1759937017754,0.00120001,4457.3,4456.4,2.55]
[1759937018176,0.00120001,4457.3,4457.2,2.24356097]
[1759937019109,0.00120001,4457.3,4457.2,5.24956097]
[1759937019290,0.00120001,4457.3,4457.2,6.0011238]
[1759937022975,0.00120001,4457.3,4457.2,4.79256097]
[1759937023206,0.00120001,4457.3,4457.2,5.25566097]
[1759937023922,0.122,4457.9,4457.2,5.25566097]
[1759937023923,1e-08,4457.9,4457.4,2.24342893]
[1759937024125,0.01,4458.9,4457.5,2.57143409]
[1759937024421,0.01,4458.9,4458.8,2.42855589]
[1759937024587,0.01,4458.9,4458.8,6.85836056]
[1759937024794,0.01,4458.9,4458.8,5.55565589]
[1759937025179,1e-08,4459.0,4458.9,2.2427056]
[1759937025379,1e-08,4459.0,4458.9,2.26513265]
[1759937025584,1e-08,4459.0,4458.9,2.7058056]
[1759937025780,1e-08,4459.0,4458.9,3.26092043]
[1759937026572,1e-08,4459.0,4458.9,6.86135081]
[1759937027359,1e-08,4459.0,4458.9,5.81292043]
[1759937027664,1e-08,4459.0,4458.9,3.57021483]
[1759937028022,1e-08,4459.0,4458.9,0.55511483]
[1759937028263,1e-08,4459.0,4458.3,0.1858]
[1759937028472,1e-08,4459.0,4458.4,2.665]
[1759937028761,1e-08,4459.0,4458.5,2.552]
[1759937029222,1e-08,4459.0,4458.6,2.552]
[1759937029417,1e-08,4459.0,4457.6,2.2433475]
[1759937029418,2.24287274,4458.6,4457.6,2.2433475]
[1759937029784,2.24287274,4458.6,4457.2,0.4631]
[1759937029785,0.112,4458.4,4457.7,0.112]
[1759937029920,0.4539,4458.5,4457.2,0.4631]
[1759937030120,0.112,4458.2,4457.4,0.112]
[1759937030320,0.112,4458.2,4457.5,2.552]
[1759937030561,2.35507386,4458.2,4457.5,2.552]
[1759937030760,0.39289739,4458.2,4457.4,0.112]
[1759937030923,0.5659,4458.2,4457.5,2.552]
[1759937031123,0.112,4458.2,4457.5,2.552]
[1759937031635,0.112,4458.2,4457.6,4.79534845]
[1759937031837,0.112,4458.2,4457.6,2.552]
[1759937032318,2.35506651,4458.2,4457.6,2.552]
[1759937032518,0.112,4458.2,4457.7,2.24325967]
[1759937032732,0.112,4458.2,4457.8,2.24325626]
[1759937033320,0.112,4458.2,4457.7,0.02243309]
[1759937033542,1.92,4458.7,4457.2,0.45981737]
[1759937033740,0.112,4457.9,4457.2,0.112]
[1759937034179,0.112,4457.9,4457.2,2.664]
[1759937034363,0.1112,4457.9,4457.3,0.0224351]
[1759937034542,0.6336,4458.8,4457.4,0.4368]
[1759937034742,0.112,4458.2,4457.6,2.24335899]
[1759937034978,0.112,4458.2,4457.6,2.553]
[1759937035771,0.112,4458.2,4458.1,2.42890805]
[1759937036048,0.112,4458.2,4457.7,0.4368]
[1759937036280,0.112,4458.2,4457.6,5.10653862]
[1759937036281,0.112,4458.2,4457.9,2.24318611]
[1759937036482,0.112,4458.2,4457.7,2.24330932]
[1759937036883,0.112,4458.2,4457.8,2.243259]
[1759937037081,0.112,4458.2,4457.9,2.24320664]
[1759937037299,0.112,4458.2,4457.6,2.86318]
[1759937037473,0.112,4458.2,4457.6,5.10649534]
[1759937037659,0.112,4458.2,4457.7,2.24330932]
[1759937037859,0.112,4458.2,4458.0,2.24314326]
[1759937038180,1e-08,4459.0,4458.0,2.552]
[1759937038481,0.112,4458.9,4458.1,0.112]
[1759937038685,2.35470853,4458.9,4458.1,2.35509579]
[1759937038889,0.112,4458.9,4458.5,2.24286256]
[1759937039083,0.4602,4458.8,4458.1,0.112]
[1759937039284,0.112,4458.9,4458.1,0.112]
[1759937039285,0.112,4458.9,4458.3,2.552]
[1759937039457,0.112,4458.9,4458.1,0.112]
[1759937039784,0.112,4458.5,4457.9,2.552]
[1759937040301,0.23548953,4458.4,4457.1,0.46945756]
[1759937040499,4.39845615,4458.4,4457.2,2.552]
[1759937040700,0.23548953,4458.4,4457.8,2.24322102]
[1759937040857,1e-08,4459.0,4457.8,0.4368]